bitfinex/quotes_SOLUSD_20240614
["timestamp","ask_amount","ask_price","bid_price","bid_amount"]
[1718384967020,0.8514778,140.97,140.93,3.3053]
[1718384967454,0.8514778,140.97,140.93,0.68]
[1718384968268,7.6241,141.0,140.93,0.68]
[1718384968269,5.0,141.0,140.96,27.5753]
[1718384968435,5.0,141.0,140.98,0.17]
[1718384970832,7.40162714,141.09,140.99,15.628]
[1718384971061,18.3589,141.08,141.0,0.68]
[1718384971263,2.6224,141.09,141.02,0.17]
[1718384971432,7.8672,141.09,141.02,0.68]
[1718384971627,7.2969778,141.12,141.02,122.04]
[1718384971628,7.8664,141.11,141.02,122.04]
[1718384971936,0.8514778,141.12,141.04,100.17]
[1718384972161,0.8514778,141.12,141.11,2.792]
[1718384972353,0.8514778,141.12,141.11,3.302]
[1718384972637,0.8514778,141.12,141.11,0.68]
[1718384972935,0.8514778,141.12,141.11,26.9005]
[1718384973230,0.8514778,141.12,141.11,8.5461]
[1718384973559,6.2423,141.19,141.15,0.17]
[1718384973560,7.8617,141.19,141.15,0.17]
[1718384973723,2.6205,141.19,141.15,0.68]
[1718384973926,23.5843,141.2,141.15,0.68]
[1718384973927,2.6204,141.2,141.15,3.3012]
[1718384974156,7.8612,141.2,141.15,3.3013]
[1718384974432,2.62,141.22,141.17,8.0324]
[1718384974769,0.8514778,141.26,141.19,0.17]
[1718384974925,7.8588,141.25,141.19,8.0315]
[1718384975133,8.7095778,141.26,141.21,0.17]
[1718384975338,3.4708778,141.26,141.21,0.17]
[1718384975630,3.4708778,141.26,141.23,0.17]
[1718384975631,0.8514778,141.26,141.23,0.17]
[1718384975942,0.8514778,141.26,141.25,0.17]
[1718384976142,0.8514778,141.26,141.25,26.3645]
[1718384976358,6.0073,141.43,141.29,0.17]
[1718384976545,6.0073,141.43,141.31,0.17]
[1718384976729,15.7038,141.37,141.31,3.2983]
[1718384977063,100.0,141.39,141.27,0.17]
[1718384977243,10.0,141.39,141.21,6.6627]
[1718384977442,10.4717,141.34,141.22,10.9898]
[1718384977652,100.0,141.38,141.22,10.9898]
[1718384977653,2.6186,141.3,141.24,13.268]
[1718384977851,100.0,141.4,141.26,0.17]
[1718384978165,7.854,141.33,141.27,5.2381]
[1718384978330,8.24070887,141.41,141.28,0.34]
[1718384978546,5.2381,141.4,141.3,0.17]
[1718384978770,2.6183,141.31,141.3,0.17]
[1718384978973,2.6184,141.31,141.29,0.34]
[1718384979139,7.8551,141.31,141.29,0.34]
[1718384979342,7.8551,141.31,141.24,18.3369]
[1718384979343,100.0,141.38,141.2,15.2681]
[1718384979563,2.619,141.28,141.22,23.5798]
[1718384979755,18.3313,141.29,141.22,5.2398]
[1718384979958,7.8565,141.29,141.23,7.8593]
[1718384980146,2.6187,141.29,141.24,2.6196]
[1718384980349,2.6188,141.29,141.23,2.6198]
[1718384980563,2.6188,141.29,141.24,0.51]
[1718384980564,7.8562,141.29,141.24,0.51]
[1718384980867,2.6189,141.28,141.25,0.17]
[1718384981060,26.1874,141.29,141.25,0.17]
[1718384981235,7.8562,141.29,141.25,0.17]
[1718384981434,100.0,141.32,141.2,15.2681]
[1718384981641,2.6199,141.23,141.17,18.346]
[1718384981943,10.0,141.34,141.16,8.7119]
[1718384981944,2.6203,141.21,141.16,8.7119]
[1718384982372,2.6204,141.2,141.15,18.7294]
[1718384982569,23.5823,141.21,141.15,18.7294]
[1718384982748,2.6205,141.2,141.15,18.7294]
[1718384983076,15.7226,141.2,141.15,16.1082]
[1718384983268,15.7226,141.2,141.15,18.7295]
[1718384983269,7.8614,141.2,141.15,18.7295]
[1718384983450,2.6205,141.2,141.15,16.1082]
[1718384983651,2.6203,141.21,141.15,39.6994]
[1718384983962,0.17,141.29,141.11,6.261]
[1718384983963,0.17,141.24,141.11,6.261]
[1718384984169,0.17,141.24,141.11,32.4808]
[1718384984170,7.8629,141.17,141.11,32.4808]
[1718384984459,0.34,141.24,141.12,2.6218]
[1718384984658,2.6211,141.17,141.12,7.8655]
[1718384984846,0.34,141.24,141.13,10.4866]
[1718384984847,18.3431,141.2,141.13,10.4866]
[1718384985043,2.621,141.17,141.11,5.2439]
[1718384985244,2.6211,141.16,141.11,7.8658]
[1718384985455,2.6211,141.16,141.11,2.6219]
[1718384985857,2.621,141.17,141.12,2.6218]
[1718384986074,7.8631,141.17,141.13,0.34]
[1718384986390,2.6211,141.16,141.14,0.34]
[1718384986557,23.5887,141.17,141.15,0.34]
[1718384986558,2.621,141.17,141.15,0.34]
[1718384986758,7.8629,141.17,141.15,0.34]
[1718384987058,2.6207,141.18,141.15,0.34]
[1718384987248,2.6208,141.18,141.15,0.34]
[1718384987457,2.6209,141.17,141.15,0.34]
[1718384987654,26.2082,141.18,141.15,0.34]
[1718384987852,7.8625,141.18,141.15,0.34]
[1718384988259,2.6208,141.18,141.15,0.34]
[1718384988962,23.5857,141.19,141.15,0.34]
[1718384989285,7.8622,141.18,141.15,0.34]
[1718384989689,5.2422,141.16,141.15,0.34]
[1718384989982,2.6212,141.16,141.14,0.17]
[1718384990176,7.8634,141.16,141.13,0.17]
[1718384990369,7.8634,141.16,141.11,2.622]
[1718384990569,7.8634,141.16,141.1,26.2215]
[1718384990770,2.6213,141.15,141.1,2.622]
[1718384990969,2.6211,141.16,141.11,7.866]
[1718384991153,7.8633,141.16,141.11,2.6219]
[1718384991357,2.6211,141.16,141.11,7.866]
[1718384991619,2.6211,141.16,141.11,2.6219]
[1718384991788,2.6211,141.16,141.11,7.866]
[1718384992284,26.21,141.17,141.11,15.7321]
[1718384992492,2.6208,141.18,141.13,2.6215]
[1718384992673,5.2412,141.19,141.14,0.51]
[1718384992860,2.6209,141.17,141.14,0.51]
[1718384993084,7.8625,141.18,141.14,0.51]
[1718384993406,7.8617,141.19,141.14,3.1314]
[1718384993701,26.2062,141.19,141.14,3.1315]
[1718384993885,26.2062,141.19,141.15,0.17]
[1718384994069,7.39830829,141.23,141.15,0.17]
[1718384994070,7.39830829,141.23,141.16,7.8633]
[1718384994264,15.7212,141.21,141.17,2.09504514]
[1718384994484,2.6204,141.2,141.17,0.68]
[1718384994687,7.8612,141.2,141.17,0.68]
[1718384994985,2.6205,141.2,141.17,0.68]
[1718384995190,7.8613,141.2,141.17,0.68]
[1718384995399,18.3418,141.21,141.17,0.68]
[1718384995400,26.2029,141.21,141.17,0.68]
[1718384995596,7.8609,141.21,141.17,0.68]
[1718384995908,2.6204,141.2,141.17,0.68]
[1718384996093,23.582,141.21,141.17,0.68]
[1718384996380,26.2023,141.21,141.17,0.68]
[1718384996588,7.8609,141.21,141.17,0.68]
[1718384996968,2.6204,141.2,141.17,0.68]
[1718384997373,26.2024,141.21,141.17,0.68]
[1718384997581,15.7225,141.2,141.17,0.68]
[1718384997783,15.7225,141.2,141.14,13.1072]
[1718384997784,2.6208,141.18,141.12,10.4871]
[1718384998103,10.4835,141.18,141.09,15.2241]
[1718384998403,7.863,141.17,141.12,2.6218]
[1718384998587,26.2088,141.18,141.13,2.6216]
[1718384998930,23.5887,141.17,141.11,23.598]
[1718384999067,2.6212,141.16,141.11,7.8659]
[1718384999470,7.8631,141.17,141.12,2.6218]
[1718384999667,15.7259,141.17,141.12,2.6218]
[1718384999887,15.7259,141.17,141.11,23.5981]
[1718385000070,15.7259,141.17,141.12,2.6218]
[1718385000424,15.7293,141.14,141.09,17.8465]
[1718385000578,2.6216,141.13,141.09,15.2241]
[1718385000767,26.2153,141.14,141.09,17.8464]
[1718385000965,16.1771,141.21,141.09,17.8464]
[1718385000966,2.6208,141.18,141.13,7.8648]
[1718385001226,26.2008,141.22,141.16,15.7263]
[1718385001366,29.99810575,141.25,141.14,7.8641]
[1718385001689,100.0,141.24,141.09,15.2241]
[1718385001865,7.8634,141.16,141.1,18.3551]
[1718385002074,100.0,141.22,141.09,17.8465]
[1718385002075,5.2431,141.14,141.09,17.8465]
[1718385002292,29.99810575,141.25,141.06,2.6229]
[1718385002293,2.6221,141.11,141.06,2.6229]
[1718385002591,5.2449,141.09,141.03,23.6111]
[1718385002792,2.6229,141.07,141.02,9.1696]
[1718385003099,2.6229,141.07,141.01,18.3667]
[1718385003100,100.0,141.14,141.01,18.3667]
[1718385003312,2.6229,141.07,141.02,5.2473]
[1718385003470,23.6008,141.1,141.04,2.6232]
[1718385003670,7.8673,141.09,141.04,2.6232]
[1718385003906,7.8673,141.09,141.03,26.2349]
[1718385003907,26.2248,141.09,141.03,26.2349]
[1718385004067,2.623,141.06,141.01,2.6238]
[1718385004296,100.0,141.12,141.01,5.2477]
[1718385004297,23.6065,141.07,141.01,5.2477]
[1718385004469,100.0,141.12,140.99,16.1977]
[1718385004684,2.6228,141.07,141.02,7.8708]
[1718385004909,23.6039,141.08,141.02,23.6131]
[1718385005083,2.6228,141.07,141.02,7.8708]
[1718385005422,23.6039,141.08,141.03,2.6234]
[1718385005423,2.6227,141.08,141.03,2.6234]
[1718385005616,7.40437334,141.12,140.99,16.1977]
[1718385005799,5.2464,141.05,140.99,21.4461]
[1718385006097,2.6239,141.01,140.96,2.6247]
[1718385006306,2.6239,141.01,140.94,21.8683]
[1718385006307,0.17,141.08,140.94,24.4933]
[1718385006480,2.6244,140.99,140.94,15.8621]
[1718385006685,13.1217,140.99,140.94,15.8621]
[1718385006870,23.619,140.99,140.94,15.8621]
[1718385007082,2.6243,140.99,140.94,18.4872]
[1718385007297,2.6245,140.98,140.94,15.8621]
[1718385007496,5.2491,140.98,140.92,5.251]
[1718385007824,13.1229,140.98,140.92,2.6255]
[1718385008092,2.6248,140.96,140.91,2.6257]
[1718385008298,0.17,141.05,140.9,30.8058778]
[1718385008299,5.2505,140.94,140.9,0.8514778]
[1718385008531,7.8758,140.94,140.9,0.8514778]
[1718385008668,2.6253,140.94,140.9,0.8514778]
[1718385008873,7.8757,140.94,140.9,0.8514778]
[1718385009133,100.0,141.0,140.9,0.8514778]
[1718385009298,7.8765,140.93,140.9,0.8514778]
[1718385009495,26.2535,140.94,140.9,0.8514778]
[1718385009680,2.6253,140.94,140.9,0.8514778]
[1718385010371,2.6254,140.93,140.9,0.8514778]
[1718385010693,6.4232,141.01,140.91,2.6257]
[1718385010920,6.4232,141.01,140.9,0.8514778]
[1718385010921,5.2502,140.95,140.9,0.8514778]
[1718385011117,100.0,140.99,140.9,0.8514778]
[1718385011296,7.8741,140.97,140.91,13.1286]
[1718385011475,7.8741,140.97,140.91,26.2573]
[1718385011744,7.8752,140.95,140.92,0.34]
[1718385011905,23.6253,140.95,140.91,0.34]
[1718385012079,112.10105951,141.01,140.91,0.34]
[1718385012080,2.6249,140.96,140.91,2.9657]
[1718385012384,2.6249,140.96,140.92,0.17]
[1718385012577,2.6249,140.96,140.92,0.34]
[1718385012794,2.6249,140.96,140.93,0.17]
[1718385013007,7.8746,140.96,140.93,0.17]
[1718385013404,5.2497,140.96,140.93,0.17]
[1718385013578,7.8751,140.95,140.93,0.17]
[1718385013788,7.8756,140.94,140.92,0.34]
[1718385014298,100.0,140.99,140.9,0.8514778]
[1718385014489,26.2576,140.91,140.9,0.8514778]
[1718385016001,15.7545,140.91,140.9,0.8514778]
[1718385016185,2.6257,140.92,140.9,0.8514778]
[1718385016372,18.3786,140.93,140.9,7.78e-05]
[1718385016373,32.6055,140.91,140.9,7.78e-05]
[1718385016580,6.3479,140.91,140.81,19.1889]
[1718385016795,15.7604,140.86,140.81,19.189]
[1718385016995,7.8803,140.86,140.81,19.189]
[1718385017178,6.3479,140.91,140.81,24.4442]
[1718385017380,6.3479,140.91,140.82,2.6273]
[1718385017381,2.6266,140.87,140.82,2.6273]
[1718385017599,2.6267,140.86,140.81,19.1889]
[1718385017777,26.2675,140.86,140.81,19.189]
[1718385018212,10.5059,140.88,140.81,16.5614]
[1718385018496,2.6268,140.86,140.82,0.34]
[1718385018828,26.2681,140.86,140.82,0.34]
[1718385019009,2.6265,140.87,140.82,8.2221]
[1718385019191,23.6373,140.88,140.82,23.9867]
[1718385019380,2.6262,140.89,140.85,0.17]
[1718385019604,6.5306,140.96,140.86,0.17]
[1718385019776,5.2516,140.91,140.86,0.51]
[1718385020112,5.2513,140.92,140.87,0.17]
[1718385020295,13.1272,140.93,140.88,0.17]
[1718385020489,23.6275,140.94,140.88,5.7626]
[1718385020687,2.6255,140.93,140.88,3.1363]
[1718385020897,23.6225,140.97,140.92,0.17]
[1718385021079,2.625,140.96,140.92,0.68]
[1718385021500,2.838956,141.01,140.92,5.931]
[1718385021501,23.6208,140.98,140.92,5.931]
[1718385021686,7.4096593,141.01,140.95,0.17]
[1718385021895,2.6241,141.0,140.96,0.51]
[1718385022110,15.7446,141.0,140.96,0.51]
[1718385022318,5.2482,141.0,140.96,0.51]
[1718385022516,7.40753556,141.06,140.97,0.17]
[1718385022706,2.6241,141.0,140.97,0.17]
[1718385022964,2.6246,140.97,140.96,0.34]
[1718385023128,100.0,141.05,140.92,0.17]
[1718385023320,7.40753556,141.06,140.94,0.17]
[1718385023527,2.6245,140.98,140.94,0.17]
[1718385023733,2.6244,140.98,140.94,0.17]
[1718385024028,2.6244,140.99,140.94,0.17]
[1718385024240,100.0,141.05,140.94,0.17]
[1718385024436,7.40753556,141.06,140.93,0.51]
[1718385024437,7.8741,140.97,140.93,0.51]
[1718385024634,7.8746,140.96,140.93,0.51]
[1718385024850,2.6248,140.96,140.93,0.51]
[1718385025045,7.8746,140.96,140.93,0.51]
[1718385025242,2.6246,140.97,140.93,0.51]
[1718385025829,7.8711,141.03,140.94,0.17]
[1718385026135,2.6239,141.01,140.98,0.17]
[1718385026470,2.624,141.01,140.98,0.17]
[1718385026826,2.6241,141.0,140.97,0.51]
[1718385027024,100.0,141.04,140.91,15.5014]
[1718385027251,2.6253,140.94,140.91,15.5014]
[1718385027458,18.3761,140.95,140.91,15.5014]
[1718385027459,7.8753,140.95,140.91,15.5014]
[1718385027625,10.498,140.98,140.92,13.1272]
[1718385027824,2.6238,141.02,140.97,2.6246]
[1718385028050,5.248,141.01,140.91,15.5014]
[1718385028238,2.6238,141.02,140.97,7.8739]
[1718385028432,7.8713,141.02,140.97,2.6246]
[1718385028670,2.6239,141.01,140.96,2.6247]
[1718385028884,2.6247,140.97,140.95,0.34]
[1718385029176,2.6247,140.97,140.92,2.6255]
[1718385029177,7.40753556,141.06,140.97,0.17]
[1718385029330,100.0,141.04,140.91,15.5014]
[1718385029527,0.17,141.05,140.91,15.5014]
[1718385029727,100.0,141.05,140.91,15.5014]
[1718385029958,0.17,141.05,140.91,15.5014]
[1718385030261,2.6245,140.98,140.93,2.6253]
[1718385030461,15.746,140.99,140.93,15.7521]
[1718385030650,2.6246,140.97,140.94,0.51]
[1718385030860,7.40753556,141.06,140.94,0.51]
[1718385030861,2.6243,140.99,140.94,3.1351]
[1718385031162,2.6247,140.97,140.94,0.51]
[1718385031484,5.2487,140.99,140.94,0.51]
[1718385031646,7.8734,140.98,140.94,0.51]
[1718385031945,2.6246,140.97,140.94,0.51]
[1718385032138,23.6203,140.98,140.94,0.51]
[1718385032334,2.6247,140.97,140.94,0.51]
[1718385032535,26.2449,140.98,140.95,0.17]
[1718385032765,7.8735,140.98,140.95,0.17]
[1718385033265,7.4084849,141.04,140.96,2.6247]
[1718385033266,2.6239,141.01,140.96,2.6247]
[1718385033481,2.6239,141.01,140.97,0.51]
[1718385033780,26.2345,141.04,140.99,2.6242]
[1718385033993,5.2463,141.05,141.0,0.51]
[1718385034145,5.2461,141.06,140.95,18.3745]
[1718385034355,2.6241,141.0,140.95,2.6248]
[1718385034559,2.6241,141.0,140.96,0.68]
[1718385034560,26.2417,141.0,140.96,0.68]
[1718385034787,2.6242,141.0,140.96,0.51]
[1718385034983,26.2401,141.01,140.97,0.17]
[1718385035270,7.40553941,141.08,140.98,2.6244]
[1718385035439,5.248,141.01,140.97,0.17]
[1718385035817,2.6241,141.0,140.97,0.17]
[1718385036270,23.6156,141.01,140.97,0.17]
[1718385036473,2.6241,141.0,140.97,0.17]
[1718385036644,26.2396,141.01,140.97,0.17]
[1718385036869,2.6239,141.01,140.97,0.17]
[1718385037046,2.6235,141.04,141.0,0.17]
[1718385037279,10.4928,141.05,141.0,3.3039]
[1718385037560,15.7416,141.03,141.0,0.68]
[1718385038240,7.8709,141.03,141.0,0.68]
[1718385038461,107.40553941,141.08,140.98,6.4072]
[1718385038751,15.7437,141.01,140.98,0.17]
[1718385039055,10.4919,141.07,140.99,0.17]
[1718385039250,7.40553941,141.08,141.04,2.6232]
[1718385039460,106.4564,141.13,141.01,2.6238]
[1718385039777,106.4564,141.13,140.99,16.0884]
[1718385039778,2.6239,141.01,140.99,15.7484]
[1718385039973,5.2456,141.07,141.01,5.4176]
[1718385040283,2.623,141.06,141.03,0.17]
[1718385040449,7.8685,141.07,141.03,0.17]
[1718385040647,23.6043,141.08,141.03,0.17]
[1718385040866,7.8673,141.09,141.04,5.2467]
[1718385041179,23.5972,141.12,141.06,23.7765]
[1718385041360,5.2438,141.12,141.07,1.48521799]
[1718385041572,7.8657,141.12,141.07,4.10791799]
[1718385041884,2.6214,141.15,141.1,2.6221]
[1718385042058,7.40143484,141.17,141.08,16.4661]
[1718385042059,7.863,141.17,141.12,0.17]
[1718385042259,5.2403,141.22,141.14,5.2429]
[1718385042523,2.6208,141.18,141.15,0.34]
[1718385042682,15.7256,141.17,141.16,0.34]
[1718385042845,10.4831,141.18,141.16,0.34]
[1718385042846,2.6209,141.18,141.16,0.34]
[1718385043057,7.8628,141.17,141.16,0.34]
[1718385043262,23.5861,141.19,141.16,0.34]
[1718385043442,7.39800826,141.23,141.17,0.34]
[1718385043443,2.6203,141.21,141.17,0.34]
[1718385043648,7.8591,141.24,141.19,0.17]
[1718385043847,2.6201,141.22,141.19,0.34]
[1718385044073,2.6199,141.23,141.2,0.34]
[1718385044377,2.6201,141.22,141.2,0.34]
[1718385044680,7.86,141.22,141.2,0.34]
[1718385044847,2.62,141.22,141.2,0.34]
[1718385045059,2.6202,141.21,141.2,0.51]
[1718385045399,15.7203,141.22,141.2,0.68]
[1718385045681,7.8602,141.22,141.2,0.68]
[1718385045876,22.9559,141.34,141.2,0.51]
[1718385046044,5.2401,141.22,141.2,0.51]
[1718385046256,26.202,141.21,141.2,0.68]
[1718385046478,2.6202,141.21,141.2,0.68]
[1718385046746,7.8608,141.21,141.18,0.17]
[1718385046951,2.6208,141.18,141.13,8.6951]
[1718385047263,7.8605,141.22,141.12,16.3181]
[1718385047578,2.6216,141.14,141.09,2.6224]
[1718385048272,5.2423,141.16,141.1,18.3547]
[1718385048475,7.8642,141.15,141.1,2.6222]
[1718385048645,100.0,141.21,141.08,6.2056]
[1718385048893,5.2435,141.13,141.08,6.2056]
[1718385049078,100.0,141.18,141.07,16.3181]
[1718385049268,0.17,141.19,141.07,16.3181]
[1718385049466,2.6208,141.18,141.13,2.6216]
[1718385049761,105.68245715,141.22,141.07,16.3181]
[1718385049895,2.6215,141.14,141.08,18.358]
[1718385050204,11.89140862,141.24,141.07,16.3181]
[1718385050375,2.6207,141.19,141.14,0.17]
[1718385050683,0.8514778,141.26,141.14,0.17]
[1718385050684,2.62,141.22,141.17,2.7908]
[1718385050854,2.6202,141.21,141.18,0.34]
[1718385051275,7.8606,141.21,141.18,0.34]
[1718385051568,2.6204,141.2,141.18,0.34]
[1718385052474,0.8514778,141.26,141.18,0.34]
[1718385052661,5.2405,141.21,141.18,0.34]
[1718385052974,2.6205,141.19,141.18,0.17]
[1718385053166,2.6205,141.19,141.17,0.34]
[1718385053371,2.6202,141.21,141.17,0.34]
[1718385053578,0.8514778,141.26,141.18,0.34]
[1718385053896,7.8608,141.21,141.19,0.34]
[1718385054053,0.8514778,141.26,141.18,0.34]
[1718385054258,2.6202,141.21,141.19,0.34]
[1718385054565,23.5809,141.22,141.19,0.34]
[1718385054566,18.3408,141.22,141.19,0.34]
[1718385054776,2.6202,141.21,141.19,0.34]
[1718385055041,13.1011,141.21,141.19,0.34]
[1718385055292,0.8514778,141.26,141.2,0.17]
[1718385055293,2.6197,141.24,141.2,0.17]
[1718385055588,7.859,141.24,141.2,0.34]
[1718385055886,2.6197,141.24,141.21,0.34]
[1718385056066,7.859,141.24,141.21,0.34]
[1718385056257,2.6198,141.23,141.21,0.34]
[1718385056655,19.1870778,141.26,141.21,0.34]
[1718385056854,0.8514778,141.26,141.22,7.8597]
[1718385057132,0.8514778,141.26,141.23,0.68]
[1718385057395,2.6195,141.25,141.23,0.51]
[1718385057556,19.1872778,141.26,141.23,0.34]
[1718385057557,27.0453778,141.26,141.23,0.34]
[1718385057758,0.8514778,141.26,141.23,0.17]
[1718385057965,3.4707778,141.26,141.23,0.34]
[1718385058189,0.8514778,141.26,141.24,0.34]
[1718385058381,0.8514778,141.26,141.25,0.17]
[1718385060098,8.7091778,141.26,141.24,0.34]
[1718385060305,24.4254778,141.26,141.24,0.34]
[1718385060506,24.4254778,141.26,141.23,0.17]
[1718385060666,24.4254778,141.26,141.23,0.34]
[1718385060867,3.4708778,141.26,141.23,0.34]
[1718385061076,16.5672778,141.26,141.23,0.34]
[1718385061395,23.5759,141.25,141.2,2.6203]
[1718385061621,23.5759,141.25,141.19,23.5844]
[1718385061622,18.3384,141.24,141.19,7.8614]
[1718385061914,2.6204,141.2,141.16,18.8397]
[1718385062208,0.8514778,141.26,141.16,16.2187]
[1718385062527,100.0,141.24,141.11,26.6943]
[1718385062807,0.17,141.21,141.11,15.2863]
[1718385063003,23.5938,141.14,141.11,15.2863]
[1718385063179,7.8652,141.13,141.11,15.2863]
[1718385063474,100.0,141.22,141.11,15.2863]
[1718385063677,6.0482,141.24,141.11,136.6463]
[1718385063982,0.8514778,141.26,141.11,15.2863]
[1718385064208,0.8514778,141.26,141.15,18.3489]
[1718385064500,0.8514778,141.26,141.14,0.17]
[1718385064501,23.5888,141.17,141.14,0.17]
[1718385064698,0.8514778,141.26,141.15,0.17]
[1718385064871,2.6207,141.18,141.15,0.34]
[1718385065066,0.8514778,141.26,141.15,0.34]
[1718385065067,0.8514778,141.26,141.15,5.5825]
[1718385065385,2.6205,141.2,141.16,2.6211]
[1718385065579,2.6205,141.19,141.15,8.2037]
[1718385065889,0.17,141.25,141.16,0.34]
[1718385066084,2.6206,141.19,141.16,0.34]
[1718385066503,2.6209,141.17,141.16,0.34]
[1718385066807,0.17,141.25,141.16,0.34]
[1718385066995,100.34,141.25,141.12,2.7917]
[1718385067170,100.68,141.25,141.14,0.17]
[1718385067379,2.6213,141.15,141.11,15.2863]
[1718385067568,7.8639,141.15,141.11,15.2863]
[1718385067780,0.17,141.17,141.05,15.7266]
[1718385067986,2.6225,141.09,141.05,18.3497]
[1718385068300,2.6223,141.1,141.05,28.8422]
[1718385068508,0.17,141.17,141.08,2.6225]
[1718385068674,6.137,141.18,141.05,15.7266]
[1718385068873,13.53763547,141.18,141.09,2.6223]
[1718385069102,13.53763547,141.18,141.05,15.7266]
[1718385069401,7.8639,141.15,141.1,23.5996]
[1718385069607,2.6217,141.13,141.08,23.603]
[1718385069909,107.40063547,141.18,141.05,18.3496]
[1718385070126,100.0,141.16,141.05,15.7266]
[1718385070301,7.8679,141.08,141.05,15.7266]
[1718385070471,10.4897,141.09,141.05,15.7266]
[1718385070472,23.6025,141.09,141.05,15.7266]
[1718385070712,5.2453,141.08,141.05,15.7266]
[1718385070902,5.2435,141.13,141.05,15.7266]
[1718385071131,7.868,141.08,141.05,15.7266]
[1718385071305,2.6227,141.08,141.05,15.7266]
[1718385071595,26.2254,141.09,141.05,18.3497]
[1718385071903,0.17,141.17,141.05,15.7266]
[1718385072067,15.7325,141.11,141.06,23.6061]
[1718385072272,2.6226,141.08,141.05,15.7266]
[1718385072509,0.17,141.17,141.06,0.17]
[1718385072697,7.40063547,141.18,141.09,5.2448]
[1718385072902,23.5938,141.14,141.1,0.17]
[1718385073080,7.40063547,141.18,141.05,15.7266]
[1718385073486,5.2427,141.15,141.1,7.8663]
[1718385073799,7.8651,141.13,141.09,0.51]
[1718385074103,2.6222,141.1,141.09,0.51]
[1718385074277,2.6222,141.1,141.06,2.6229]
[1718385074477,5.2454,141.08,141.05,15.7266]
[1718385074702,5.2456,141.07,141.05,15.7266]
[1718385074874,20.9786,141.1,141.05,18.3496]
[1718385075073,7.8669,141.1,141.06,2.6229]
[1718385075295,15.7336,141.1,141.05,41.9579]
[1718385075633,15.7346,141.09,141.05,15.7266]
[1718385075896,2.6221,141.11,141.06,23.7762]
[1718385076136,2.6217,141.13,141.08,23.7726]
[1718385076414,107.40063547,141.18,141.07,0.34]
[1718385076706,26.2252,141.09,141.06,0.34]
[1718385076874,100.0,141.16,141.06,2.9628]
[1718385077114,2.6222,141.1,141.06,8.2087]
[1718385077294,2.6224,141.09,141.06,0.34]
[1718385077492,15.736,141.08,141.06,0.17]
[1718385077706,2.6228,141.07,141.06,0.17]
[1718385077904,26.2264,141.08,141.06,0.17]
[1718385078178,26.2254,141.09,141.06,0.34]
[1718385078293,23.6009,141.1,141.06,0.17]
[1718385078490,26.2232,141.1,141.06,0.17]
[1718385078807,26.2246,141.09,141.06,0.17]
[1718385078983,26.2246,141.09,141.05,15.7266]
[1718385079209,100.34,141.17,141.05,15.7266]
[1718385079390,13.1148,141.06,141.02,6.252]
[1718385079693,2.6234,141.04,141.01,15.1287]
[1718385079920,18.3632,141.05,141.01,15.1287]
[1718385080086,26.2331,141.05,141.01,15.1287]
[1718385080299,7.40442821,141.11,141.01,15.1287]